[Event "Titled Tuesday Blitz September 27 Early 2022"]
[White "Cruz, Jonathan"]
[Black "Kevlishvili, Robby"]
[WhiteFideId "3802124"]
[BlackFideId "1040634"]
[WhiteElo "2406"]
[BlackElo "2585"]
[Result "1/2-1/2"]
[Round "03"]
[TimeControl "180+1"]
[Date "2022.09.27"]
[WhiteClock "0:00:03"]
[BlackClock "0:00:11"]

1. e4 {[%clk 0:03:00]}  c5 {[%clk 0:02:59]} 2. Nf3 {[%clk 0:02:58]}  d6 {[%clk 0:03:00]} 3. g3 {[%clk 0:02:49]}  Nf6 {[%clk 0:02:59]} 4. d3 {[%clk 0:02:49]}  g6 {[%clk 0:02:58]} 5. Bg2 {[%clk 0:02:50]}  Bg7 {[%clk 0:02:58]} 6. O-O {[%clk 0:02:50]}  O-O {[%clk 0:02:58]} 7. Re1 {[%clk 0:02:51]}  Nc6 {[%clk 0:02:57]} 8. c3 {[%clk 0:02:51]}  e5 {[%clk 0:02:56]} 9. Na3 {[%clk 0:02:49]}  h6 {[%clk 0:02:54]} 10. Nc2 {[%clk 0:02:49]}  Be6 {[%clk 0:02:53]} 11. d4 {[%clk 0:02:48]}  cxd4 {[%clk 0:02:53]} 12. cxd4 {[%clk 0:02:49]}  Bg4 {[%clk 0:02:52]} 13. h3 {[%clk 0:02:46]}  Bxf3 {[%clk 0:02:52]} 14. Bxf3 {[%clk 0:02:46]}  Re8 {[%clk 0:02:44]} 15. d5 {[%clk 0:02:16]}  Nd4 {[%clk 0:02:44]} 16. Nxd4 {[%clk 0:02:14]}  exd4 {[%clk 0:02:44]} 17. Bg2 {[%clk 0:02:12]}  Qb6 {[%clk 0:02:42]} 18. b3 {[%clk 0:02:10]}  Rac8 {[%clk 0:02:37]} 19. Bb2 {[%clk 0:02:09]}  Nd7 {[%clk 0:02:37]} 20. Qd2 {[%clk 0:02:02]}  Rc7 {[%clk 0:02:17]} 21. Rac1 {[%clk 0:01:36]}  Rec8 {[%clk 0:02:13]} 22. Rxc7 {[%clk 0:01:36]}  Rxc7 {[%clk 0:02:14]} 23. Rd1 {[%clk 0:01:34]}  d3 {[%clk 0:02:10]} 24. Bxg7 {[%clk 0:01:32]}  Rc2 {[%clk 0:02:10]} 25. Qe1 {[%clk 0:01:07]}  Kxg7 {[%clk 0:02:09]} 26. Rxd3 {[%clk 0:01:07]}  Rxa2 {[%clk 0:02:05]} 27. Re3 {[%clk 0:01:02]}  Ne5 {[%clk 0:01:58]} 28. Kh2 {[%clk 0:00:58]}  g5 {[%clk 0:01:52]} 29. f4 {[%clk 0:00:55]}  Ng6 {[%clk 0:01:49]} 30. Qc3+ {[%clk 0:00:54]}  Kh7 {[%clk 0:01:48]} 31. Qf6 {[%clk 0:00:50]}  Kg8 {[%clk 0:01:15]} 32. Rf3 {[%clk 0:00:32]}  Qc5 {[%clk 0:00:35]} 33. fxg5 {[%clk 0:00:22]}  Ne5 {[%clk 0:00:35]} 34. gxh6 {[%clk 0:00:16]}  Nxf3+ {[%clk 0:00:35]} 35. Qxf3 {[%clk 0:00:16]}  Qd4 {[%clk 0:00:36]} 36. h7+ {[%clk 0:00:12]}  Kg7 {[%clk 0:00:30]} 37. Qh5 {[%clk 0:00:08]}  Kh8 {[%clk 0:00:28]} 38. Qxf7 {[%clk 0:00:07]}  Qg7 {[%clk 0:00:24]} 39. Qe8+ {[%clk 0:00:07]}  Kxh7 {[%clk 0:00:24]} 40. Qh5+ {[%clk 0:00:06]}  Kg8 {[%clk 0:00:20]} 41. Qe8+ {[%clk 0:00:06]}  Qf8 {[%clk 0:00:20]} 42. Qg6+ {[%clk 0:00:06]}  Kh8 {[%clk 0:00:20]} 43. Qh5+ {[%clk 0:00:04]}  Kg7 {[%clk 0:00:21]} 44. Qg5+ {[%clk 0:00:04]}  Kh7 {[%clk 0:00:20]} 45. Qh5+ {[%clk 0:00:04]}  Qh6 {[%clk 0:00:20]} 46. Qf7+ {[%clk 0:00:04]}  Qg7 {[%clk 0:00:20]} 47. Qh5+ {[%clk 0:00:04]}  Kg8 {[%clk 0:00:20]} 48. Qe8+ {[%clk 0:00:05]}  Qf8 {[%clk 0:00:20]} 49. Qg6+ {[%clk 0:00:05]}  Kh8 {[%clk 0:00:21]} 50. Qh5+ {[%clk 0:00:05]}  Kg7 {[%clk 0:00:22]} 51. Qg5+ {[%clk 0:00:03]}  Kf7 {[%clk 0:00:22]} 52. e5 {[%clk 0:00:03]}  dxe5 {[%clk 0:00:20]} 53. Qxe5 {[%clk 0:00:03]}  Qe7 {[%clk 0:00:19]} 54. Qf5+ {[%clk 0:00:04]}  Kg7 {[%clk 0:00:19]} 55. Qg4+ {[%clk 0:00:04]}  Kf8 {[%clk 0:00:18]} 56. Qf4+ {[%clk 0:00:03]}  Ke8 {[%clk 0:00:17]} 57. Qb8+ {[%clk 0:00:03]}  Kf7 {[%clk 0:00:17]} 58. Qf4+ {[%clk 0:00:03]}  Qf6 {[%clk 0:00:17]} 59. Qc7+ {[%clk 0:00:03]}  Kg6 {[%clk 0:00:17]} 60. Qc8 {[%clk 0:00:01]}  Qf2 {[%clk 0:00:16]} 61. Qg8+ {[%clk 0:00:02]}  Kf6 {[%clk 0:00:16]} 62. Qe6+ {[%clk 0:00:02]}  Kg7 {[%clk 0:00:16]} 63. Qe7+ {[%clk 0:00:02]}  Kg6 {[%clk 0:00:16]} 64. Qe6+ {[%clk 0:00:02]}  Kg7 {[%clk 0:00:16]} 65. Qe7+ {[%clk 0:00:02]}  Qf7 {[%clk 0:00:13]} 66. Qg5+ {[%clk 0:00:03]}  Qg6 {[%clk 0:00:13]} 67. Qe7+ {[%clk 0:00:03]}  Qf7 {[%clk 0:00:10]} 68. Qg5+ {[%clk 0:00:02]}  Qg6 {[%clk 0:00:11]} 69. Qe7+ {[%clk 0:00:03]}  Kg8 {[%clk 0:00:11]} 70. Qd8+ {[%clk 0:00:03]}  Kg7 {[%clk 0:00:11]} 71. Qe7+ {[%clk 0:00:03]} 1/2-1/2


[Site "https://www.chess.com"]

[Event "Titled Tuesday Blitz September 27 Early 2022"]
[White "Czernek, Tymon"]
[Black "Rios Escobar, Adan"]
[WhiteFideId "1199510"]
[BlackFideId "3403645"]
[WhiteElo "2007"]
[BlackElo "2339"]
[Result "1-0"]
[Round "03"]
[TimeControl "180+1"]
[Date "2022.09.27"]
[WhiteClock "0:00:15"]
[BlackClock "0:00:09"]

1. e4 {[%clk 0:03:00]}  c5 {[%clk 0:02:53]} 2. Nf3 {[%clk 0:03:00]}  d6 {[%clk 0:02:52]} 3. d4 {[%clk 0:03:01]}  cxd4 {[%clk 0:02:52]} 4. Nxd4 {[%clk 0:03:02]}  Nf6 {[%clk 0:02:52]} 5. Nc3 {[%clk 0:03:02]}  a6 {[%clk 0:02:52]} 6. Be3 {[%clk 0:03:02]}  e5 {[%clk 0:02:47]} 7. Nb3 {[%clk 0:02:59]}  Be7 {[%clk 0:02:44]} 8. h3 {[%clk 0:02:59]}  Be6 {[%clk 0:02:33]} 9. f4 {[%clk 0:02:59]}  exf4 {[%clk 0:02:27]} 10. Bxf4 {[%clk 0:02:59]}  Nc6 {[%clk 0:02:27]} 11. Qe2 {[%clk 0:02:52]}  Ne5 {[%clk 0:02:23]} 12. O-O-O {[%clk 0:02:49]}  Nfd7 {[%clk 0:02:22]} 13. Nd5 {[%clk 0:02:43]}  Bxd5 {[%clk 0:02:15]} 14. exd5 {[%clk 0:02:43]}  Bg5 {[%clk 0:02:09]} 15. g3 {[%clk 0:02:42]}  Qf6 {[%clk 0:01:54]} 16. Kb1 {[%clk 0:02:32]}  Bxf4 {[%clk 0:01:53]} 17. gxf4 {[%clk 0:02:33]}  Qxf4 {[%clk 0:01:52]} 18. Bg2 {[%clk 0:02:33]}  O-O {[%clk 0:01:33]} 19. Rhf1 {[%clk 0:02:32]}  Qb4 {[%clk 0:01:20]} 20. a3 {[%clk 0:02:26]}  Qb6 {[%clk 0:01:17]} 21. Nd4 {[%clk 0:02:23]}  Rac8 {[%clk 0:01:10]} 22. Ka2 {[%clk 0:02:18]}  Rc5 {[%clk 0:00:44]} 23. Nf5 {[%clk 0:02:12]}  Rb5 {[%clk 0:00:31]} 24. b3 {[%clk 0:02:05]}  a5 {[%clk 0:00:30]} 25. a4 {[%clk 0:02:04]}  Rb4 {[%clk 0:00:28]} 26. Rg1 {[%clk 0:01:52]}  Nc5 {[%clk 0:00:23]} 27. Qe3 {[%clk 0:01:09]}  Nxa4 {[%clk 0:00:16]} 28. Qg3 {[%clk 0:00:37]}  Ng6 {[%clk 0:00:13]} 29. Rge1 {[%clk 0:00:36]}  Nc5 {[%clk 0:00:08]} 30. Qxd6 {[%clk 0:00:33]}  a4 {[%clk 0:00:04]} 31. Qxb6 {[%clk 0:00:31]}  Rxb6 {[%clk 0:00:04]} 32. b4 {[%clk 0:00:26]}  Rxb4 {[%clk 0:00:03]} 33. d6 {[%clk 0:00:27]}  a3 {[%clk 0:00:02]} 34. Rb1 {[%clk 0:00:26]}  Rc4 {[%clk 0:00:02]} 35. Re2 {[%clk 0:00:24]}  Nf4 {[%clk 0:00:02]} 36. Rf2 {[%clk 0:00:22]}  Nxg2 {[%clk 0:00:02]} 37. Rxg2 {[%clk 0:00:23]}  Ne4 {[%clk 0:00:02]} 38. Rb3 {[%clk 0:00:20]}  g6 {[%clk 0:00:01]} 39. Ne3 {[%clk 0:00:17]}  Rc5 {[%clk 0:00:01]} 40. d7 {[%clk 0:00:14]}  Rd8 {[%clk 0:00:01]} 41. Rxb7 {[%clk 0:00:14]}  Nf6 {[%clk 0:00:01]} 42. Rd2 {[%clk 0:00:14]}  Kf8 {[%clk 0:00:01]} 43. Kxa3 {[%clk 0:00:13]}  Ke7 {[%clk 0:00:02]} 44. Kb4 {[%clk 0:00:13]}  Re5 {[%clk 0:00:02]} 45. Nc4 {[%clk 0:00:13]}  Re4 {[%clk 0:00:02]} 46. Kb5 {[%clk 0:00:07]}  Rxd7 {[%clk 0:00:03]} 47. Rdxd7+ {[%clk 0:00:06]}  Nxd7 {[%clk 0:00:04]} 48. Nb6 {[%clk 0:00:07]}  Re5+ {[%clk 0:00:03]} 49. Kc6 {[%clk 0:00:07]}  Re6+ {[%clk 0:00:04]} 50. Kb5 {[%clk 0:00:08]}  Rxb6+ {[%clk 0:00:04]} 51. Rxb6 {[%clk 0:00:09]}  Nxb6 {[%clk 0:00:05]} 52. Kxb6 {[%clk 0:00:10]}  f5 {[%clk 0:00:06]} 53. c4 {[%clk 0:00:10]}  f4 {[%clk 0:00:06]} 54. c5 {[%clk 0:00:10]}  f3 {[%clk 0:00:06]} 55. c6 {[%clk 0:00:11]}  f2 {[%clk 0:00:07]} 56. c7 {[%clk 0:00:12]}  f1=Q {[%clk 0:00:07]} 57. c8=Q {[%clk 0:00:13]}  Qb1+ {[%clk 0:00:08]} 58. Ka5 {[%clk 0:00:13]}  Qa2+ {[%clk 0:00:08]} 59. Kb4 {[%clk 0:00:14]}  Qb2+ {[%clk 0:00:08]} 60. Ka4 {[%clk 0:00:14]}  Qa2+ {[%clk 0:00:08]} 61. Kb4 {[%clk 0:00:15]}  Qb1+ {[%clk 0:00:07]} 62. Ka4 {[%clk 0:00:15]}  Qe4+ {[%clk 0:00:08]} 63. Ka3 {[%clk 0:00:15]}  Qf3+ {[%clk 0:00:07]} 64. Kb2 {[%clk 0:00:15]}  Qg2+ {[%clk 0:00:08]} 65. Ka3 {[%clk 0:00:15]}  Qxh3+ {[%clk 0:00:08]} 66. Qxh3 {[%clk 0:00:15]}  h5 {[%clk 0:00:08]} 67. Qf3 {[%clk 0:00:14]}  Ke6 {[%clk 0:00:08]} 68. Qf4 {[%clk 0:00:15]}  Ke7 {[%clk 0:00:08]} 69. Kb4 {[%clk 0:00:15]}  Ke6 {[%clk 0:00:08]} 70. Kc5 {[%clk 0:00:15]}  Ke7 {[%clk 0:00:09]} 71. Kd5 {[%clk 0:00:15]} 1-0


[Site "https://www.chess.com"]

[Event "Titled Tuesday Blitz September 27 Early 2022"]
[White "De Silva, L M S T"]
[Black "Carlsen, Magnus"]
[WhiteFideId "9953698"]
[BlackFideId "1503014"]
[WhiteElo "1727"]
[BlackElo "2830"]
[Result "0-1"]
[Round "03"]
[TimeControl "180+1"]
[Date "2022.09.27"]
[WhiteClock "0:00:47"]
[BlackClock "0:01:56"]

1. e4 {[%clk 0:03:00]}  c6 {[%clk 0:02:55]} 2. d4 {[%clk 0:03:00]}  d5 {[%clk 0:02:55]} 3. Nc3 {[%clk 0:03:01]}  a6 {[%clk 0:02:51]} 4. Nf3 {[%clk 0:02:59]}  Bg4 {[%clk 0:02:47]} 5. exd5 {[%clk 0:02:58]}  cxd5 {[%clk 0:02:47]} 6. h3 {[%clk 0:02:57]}  Bh5 {[%clk 0:02:42]} 7. g4 {[%clk 0:02:57]}  Bg6 {[%clk 0:02:42]} 8. Ne5 {[%clk 0:02:57]}  Nc6 {[%clk 0:02:38]} 9. Nxc6 {[%clk 0:02:51]}  bxc6 {[%clk 0:02:34]} 10. Bg2 {[%clk 0:02:52]}  e6 {[%clk 0:02:34]} 11. O-O {[%clk 0:02:51]}  Bd6 {[%clk 0:02:33]} 12. Ne2 {[%clk 0:02:43]}  Qb8 {[%clk 0:02:26]} 13. b3 {[%clk 0:02:36]}  h5 {[%clk 0:02:21]} 14. g5 {[%clk 0:02:34]}  Ne7 {[%clk 0:02:21]} 15. c4 {[%clk 0:02:11]}  O-O {[%clk 0:02:19]} 16. c5 {[%clk 0:01:58]}  Bc7 {[%clk 0:02:18]} 17. f4 {[%clk 0:01:59]}  Nf5 {[%clk 0:02:12]} 18. Kh2 {[%clk 0:01:54]}  a5 {[%clk 0:02:11]} 19. Ng3 {[%clk 0:01:54]}  Nxg3 {[%clk 0:02:07]} 20. Kxg3 {[%clk 0:01:55]}  f6 {[%clk 0:02:07]} 21. h4 {[%clk 0:01:23]}  e5 {[%clk 0:02:05]} 22. f5 {[%clk 0:01:17]}  exd4+ {[%clk 0:02:04]} 23. Kh3 {[%clk 0:01:14]}  Qc8 {[%clk 0:02:01]} 24. Qf3 {[%clk 0:01:04]}  fxg5 {[%clk 0:02:00]} 25. hxg5 {[%clk 0:00:47]}  Rxf5 {[%clk 0:01:56]} 0-1


[Site "https://www.chess.com"]

[Event "Titled Tuesday Blitz September 27 Early 2022"]
[White "De Souza, Cristiano Gomes"]
[Black "Wachinger, Guenther"]
[WhiteFideId "2151758"]
[BlackFideId "4604261"]
[WhiteElo "2068"]
[BlackElo "2212"]
[Result "0-1"]
[Round "03"]
[TimeControl "180+1"]
[Date "2022.09.27"]
[WhiteClock "0:00:50"]
[BlackClock "0:00:09"]

1. d4 {[%clk 0:03:00]}  Nf6 {[%clk 0:02:58]} 2. c4 {[%clk 0:02:58]}  e6 {[%clk 0:02:57]} 3. Nf3 {[%clk 0:02:58]}  c5 {[%clk 0:02:56]} 4. d5 {[%clk 0:02:58]}  b5 {[%clk 0:02:57]} 5. dxe6 {[%clk 0:02:57]}  fxe6 {[%clk 0:02:56]} 6. cxb5 {[%clk 0:02:57]}  d5 {[%clk 0:02:57]} 7. g3 {[%clk 0:02:57]}  Bd6 {[%clk 0:02:52]} 8. Bh3 {[%clk 0:02:55]}  O-O {[%clk 0:02:46]} 9. O-O {[%clk 0:02:54]}  Qe7 {[%clk 0:02:42]} 10. a4 {[%clk 0:02:53]}  Nbd7 {[%clk 0:02:36]} 11. Nbd2 {[%clk 0:02:43]}  e5 {[%clk 0:02:35]} 12. e4 {[%clk 0:02:39]}  d4 {[%clk 0:02:22]} 13. Re1 {[%clk 0:02:30]}  Bb7 {[%clk 0:02:15]} 14. b3 {[%clk 0:02:10]}  Kh8 {[%clk 0:02:03]} 15. Nh4 {[%clk 0:01:58]}  g6 {[%clk 0:01:59]} 16. Bg2 {[%clk 0:01:54]}  Rf7 {[%clk 0:01:46]} 17. Nc4 {[%clk 0:01:51]}  Raf8 {[%clk 0:01:45]} 18. f4 {[%clk 0:01:45]}  exf4 {[%clk 0:01:38]} 19. e5 {[%clk 0:01:45]}  Nxe5 {[%clk 0:01:28]} 20. Bxb7 {[%clk 0:01:37]}  fxg3 {[%clk 0:01:24]} 21. hxg3 {[%clk 0:01:28]}  Nfg4 {[%clk 0:01:18]} 22. Nxd6 {[%clk 0:01:15]}  Qxd6 {[%clk 0:01:02]} 23. Bf4 {[%clk 0:01:15]}  Rxf4 {[%clk 0:00:34]} 24. gxf4 {[%clk 0:01:14]}  Qf6 {[%clk 0:00:20]} 25. Ng2 {[%clk 0:01:08]}  g5 {[%clk 0:00:08]} 26. Bd5 {[%clk 0:00:58]}  gxf4 {[%clk 0:00:08]} 27. Bf3 {[%clk 0:00:51]}  Ne3 {[%clk 0:00:08]} 28. Qd2 {[%clk 0:00:50]}  Nxf3+ {[%clk 0:00:08]} 29. Kf2 {[%clk 0:00:50]}  Nxd2 {[%clk 0:00:09]} 0-1


[Site "https://www.chess.com"]

[Event "Titled Tuesday Blitz September 27 Early 2022"]
[White "Di Nicolantonio, Lucas"]
[Black "Spalir, Monika"]
[WhiteFideId "680460"]
[BlackFideId "14609118"]
[WhiteElo "2381"]
[BlackElo "2032"]
[Result "1/2-1/2"]
[Round "03"]
[TimeControl "180+1"]
[Date "2022.09.27"]
[WhiteClock "0:00:12"]
[BlackClock "0:00:04"]

1. d4 {[%clk 0:03:00]}  Nf6 {[%clk 0:02:59]} 2. Nf3 {[%clk 0:03:01]}  d5 {[%clk 0:02:59]} 3. c4 {[%clk 0:02:58]}  e6 {[%clk 0:02:59]} 4. Nc3 {[%clk 0:02:59]}  dxc4 {[%clk 0:02:53]} 5. e3 {[%clk 0:02:57]}  a6 {[%clk 0:02:51]} 6. Bxc4 {[%clk 0:02:52]}  b5 {[%clk 0:02:49]} 7. Bd3 {[%clk 0:02:41]}  c5 {[%clk 0:02:39]} 8. O-O {[%clk 0:02:37]}  Bb7 {[%clk 0:02:38]} 9. e4 {[%clk 0:02:28]}  Nc6 {[%clk 0:01:41]} 10. d5 {[%clk 0:02:21]}  exd5 {[%clk 0:01:36]} 11. exd5 {[%clk 0:02:10]}  Nxd5 {[%clk 0:01:36]} 12. Bg5 {[%clk 0:01:55]}  Be7 {[%clk 0:01:21]} 13. Re1 {[%clk 0:01:21]}  Nxc3 {[%clk 0:01:13]} 14. bxc3 {[%clk 0:01:17]}  f6 {[%clk 0:00:45]} 15. Qc2 {[%clk 0:00:44]}  fxg5 {[%clk 0:00:26]} 16. Rad1 {[%clk 0:00:44]}  Qc7 {[%clk 0:00:21]} 17. Nxg5 {[%clk 0:00:30]}  O-O-O {[%clk 0:00:14]} 18. Ne6 {[%clk 0:00:28]}  Qb6 {[%clk 0:00:07]} 19. Bf5 {[%clk 0:00:29]}  Kb8 {[%clk 0:00:07]} 20. Nxd8 {[%clk 0:00:28]}  Rxd8 {[%clk 0:00:07]} 21. h3 {[%clk 0:00:24]}  Bf6 {[%clk 0:00:07]} 22. Be4 {[%clk 0:00:20]}  Ne5 {[%clk 0:00:05]} 23. Bxb7 {[%clk 0:00:20]}  Kxb7 {[%clk 0:00:06]} 24. Rxd8 {[%clk 0:00:20]}  Qxd8 {[%clk 0:00:06]} 25. Rxe5 {[%clk 0:00:18]}  Bxe5 {[%clk 0:00:06]} 26. Qe4+ {[%clk 0:00:18]}  Kb6 {[%clk 0:00:05]} 27. Qxe5 {[%clk 0:00:19]}  Qd1+ {[%clk 0:00:05]} 28. Kh2 {[%clk 0:00:20]}  Qc2 {[%clk 0:00:05]} 29. Qd6+ {[%clk 0:00:18]}  Ka5 {[%clk 0:00:03]} 30. Qxc5 {[%clk 0:00:17]}  Qxa2 {[%clk 0:00:03]} 31. Qb4+ {[%clk 0:00:13]}  Kb6 {[%clk 0:00:03]} 32. Qd6+ {[%clk 0:00:14]}  Ka5 {[%clk 0:00:03]} 33. Qc7+ {[%clk 0:00:13]}  Ka4 {[%clk 0:00:03]} 34. Qxg7 {[%clk 0:00:14]}  Qc4 {[%clk 0:00:03]} 35. Qxh7 {[%clk 0:00:10]}  Qf4+ {[%clk 0:00:03]} 36. Kg1 {[%clk 0:00:10]}  Qc1+ {[%clk 0:00:03]} 37. Kh2 {[%clk 0:00:11]}  Qf4+ {[%clk 0:00:03]} 38. Kg1 {[%clk 0:00:11]}  Qc1+ {[%clk 0:00:04]} 39. Kh2 {[%clk 0:00:12]}  Qf4+ {[%clk 0:00:04]} 1/2-1/2


[Site "https://www.chess.com"]

[Event "Titled Tuesday Blitz September 27 Early 2022"]
[White "Dilmukhametov, Artur"]
[Black "Gallegos Diaz, Carlos Alberto"]
[WhiteFideId "24179922"]
[BlackFideId "3900886"]
[WhiteElo "2206"]
[BlackElo "2362"]
[Result "0-1"]
[Round "03"]
[TimeControl "180+1"]
[Date "2022.09.27"]
[WhiteClock "0:00:30"]
[BlackClock "0:00:24"]

1. e4 {[%clk 0:03:00]}  d6 {[%clk 0:02:59]} 2. d4 {[%clk 0:03:00]}  Nf6 {[%clk 0:03:00]} 3. Nc3 {[%clk 0:02:56]}  c6 {[%clk 0:03:00]} 4. Bd2 {[%clk 0:02:54]}  e5 {[%clk 0:02:59]} 5. d5 {[%clk 0:02:52]}  Be7 {[%clk 0:02:53]} 6. Nge2 {[%clk 0:02:37]}  O-O {[%clk 0:02:51]} 7. f4 {[%clk 0:02:35]}  cxd5 {[%clk 0:02:33]} 8. Nxd5 {[%clk 0:02:29]}  Nxe4 {[%clk 0:02:27]} 9. Nxe7+ {[%clk 0:02:27]}  Qxe7 {[%clk 0:02:26]} 10. fxe5 {[%clk 0:02:27]}  dxe5 {[%clk 0:02:11]} 11. Bc3 {[%clk 0:02:22]}  Nc6 {[%clk 0:02:09]} 12. Qd3 {[%clk 0:02:18]}  Bf5 {[%clk 0:02:05]} 13. Qf3 {[%clk 0:02:07]}  Bg6 {[%clk 0:01:29]} 14. Ng3 {[%clk 0:01:46]}  Nxc3 {[%clk 0:01:06]} 15. Qxc3 {[%clk 0:01:45]}  Rac8 {[%clk 0:01:02]} 16. Bd3 {[%clk 0:01:18]}  Nd4 {[%clk 0:00:59]} 17. Qd2 {[%clk 0:01:11]}  Bxd3 {[%clk 0:00:56]} 18. cxd3 {[%clk 0:00:59]}  Nc2+ {[%clk 0:00:46]} 19. Kf2 {[%clk 0:00:58]}  Qc5+ {[%clk 0:00:42]} 20. Ke2 {[%clk 0:00:54]}  Nxa1 {[%clk 0:00:37]} 21. Rxa1 {[%clk 0:00:54]}  f5 {[%clk 0:00:37]} 22. Kd1 {[%clk 0:00:48]}  Qd4 {[%clk 0:00:31]} 23. Ne2 {[%clk 0:00:42]}  Qf2 {[%clk 0:00:28]} 24. g3 {[%clk 0:00:39]}  e4 {[%clk 0:00:26]} 25. dxe4 {[%clk 0:00:32]}  Rfd8 {[%clk 0:00:25]} 26. Qxd8+ {[%clk 0:00:31]}  Rxd8+ {[%clk 0:00:24]} 27. Kc2 {[%clk 0:00:30]}  Qxe2+ {[%clk 0:00:24]} 0-1


[Site "https://www.chess.com"]

[Event "Titled Tuesday Blitz September 27 Early 2022"]
[White "Eljanov, Pavel"]
[Black "Lewtak, Damian"]
[WhiteFideId "14102951"]
[BlackFideId "1141724"]
[WhiteElo "2601"]
[BlackElo "2329"]
[Result "0-1"]
[Round "03"]
[TimeControl "180+1"]
[Date "2022.09.27"]
[WhiteClock "0:00:40"]
[BlackClock "0:00:41"]

1. c4 {[%clk 0:03:00]}  b6 {[%clk 0:02:59]} 2. d4 {[%clk 0:02:58]}  Bb7 {[%clk 0:02:59]} 3. Nc3 {[%clk 0:02:58]}  Nf6 {[%clk 0:02:57]} 4. d5 {[%clk 0:02:57]}  e5 {[%clk 0:02:53]} 5. Nf3 {[%clk 0:02:49]}  d6 {[%clk 0:02:53]} 6. e4 {[%clk 0:02:48]}  Nbd7 {[%clk 0:02:53]} 7. Be2 {[%clk 0:02:45]}  g6 {[%clk 0:02:52]} 8. O-O {[%clk 0:02:45]}  Be7 {[%clk 0:02:52]} 9. Bh6 {[%clk 0:02:41]}  Ng4 {[%clk 0:02:49]} 10. Bd2 {[%clk 0:02:41]}  h5 {[%clk 0:02:46]} 11. b4 {[%clk 0:02:37]}  h4 {[%clk 0:02:43]} 12. h3 {[%clk 0:02:36]}  Ngf6 {[%clk 0:02:43]} 13. a4 {[%clk 0:02:31]}  Nh5 {[%clk 0:02:39]} 14. a5 {[%clk 0:02:31]}  Nf4 {[%clk 0:02:38]} 15. Re1 {[%clk 0:02:23]}  Bf6 {[%clk 0:02:31]} 16. Bf1 {[%clk 0:02:18]}  Kf8 {[%clk 0:02:28]} 17. a6 {[%clk 0:02:14]}  Bc8 {[%clk 0:02:27]} 18. Nb5 {[%clk 0:02:15]}  Kg7 {[%clk 0:02:14]} 19. Qc1 {[%clk 0:02:12]}  g5 {[%clk 0:02:11]} 20. Nh2 {[%clk 0:02:11]}  Nb8 {[%clk 0:02:07]} 21. c5 {[%clk 0:02:05]}  bxc5 {[%clk 0:01:55]} 22. bxc5 {[%clk 0:02:04]}  Nxa6 {[%clk 0:01:55]} 23. Nxd6 {[%clk 0:01:53]}  cxd6 {[%clk 0:01:56]} 24. Bxa6 {[%clk 0:01:52]}  Bxa6 {[%clk 0:01:53]} 25. Rxa6 {[%clk 0:01:53]}  Nd3 {[%clk 0:01:52]} 26. Qd1 {[%clk 0:01:38]}  Nxc5 {[%clk 0:01:51]} 27. Rc6 {[%clk 0:01:37]}  Rc8 {[%clk 0:01:50]} 28. Ng4 {[%clk 0:01:35]}  Rxc6 {[%clk 0:01:37]} 29. dxc6 {[%clk 0:01:36]}  Ne6 {[%clk 0:01:36]} 30. Be3 {[%clk 0:01:31]}  Qc7 {[%clk 0:01:28]} 31. Qf3 {[%clk 0:01:31]}  Nf4 {[%clk 0:01:24]} 32. Bxf4 {[%clk 0:01:29]}  gxf4 {[%clk 0:01:18]} 33. Rc1 {[%clk 0:01:16]}  Rb8 {[%clk 0:01:15]} 34. Nh2 {[%clk 0:01:14]}  Rb6 {[%clk 0:01:14]} 35. Qg4+ {[%clk 0:01:14]}  Kf8 {[%clk 0:01:12]} 36. Qf5 {[%clk 0:01:13]}  Bg7 {[%clk 0:01:05]} 37. Nf3 {[%clk 0:00:46]}  Rxc6 {[%clk 0:01:01]} 38. Rxc6 {[%clk 0:00:45]}  Qxc6 {[%clk 0:01:02]} 39. Nxh4 {[%clk 0:00:42]}  a5 {[%clk 0:00:49]} 40. Nf3 {[%clk 0:00:42]}  a4 {[%clk 0:00:47]} 41. Ng5 {[%clk 0:00:42]}  Qe8 {[%clk 0:00:41]} 42. Ne6+ {[%clk 0:00:40]}  Qxe6 {[%clk 0:00:41]} 0-1


[Site "https://www.chess.com"]

[Event "Titled Tuesday Blitz September 27 Early 2022"]
[White "Ernst, Sipke"]
[Black "Mendez Fortes, Eduardo Jesus"]
[WhiteFideId "1004689"]
[BlackFideId "3502376"]
[WhiteElo "2436"]
[BlackElo "2307"]
[Result "1-0"]
[Round "03"]
[TimeControl "180+1"]
[Date "2022.09.27"]
[WhiteClock "0:02:08"]
[BlackClock "0:00:14"]

1. d4 {[%clk 0:03:00]}  Nf6 {[%clk 0:02:57]} 2. c4 {[%clk 0:03:00]}  e6 {[%clk 0:02:57]} 3. Nc3 {[%clk 0:03:00]}  Bb4 {[%clk 0:02:56]} 4. a3 {[%clk 0:03:01]}  Bxc3+ {[%clk 0:02:56]} 5. bxc3 {[%clk 0:03:02]}  O-O {[%clk 0:02:54]} 6. f3 {[%clk 0:03:01]}  c5 {[%clk 0:02:54]} 7. e4 {[%clk 0:03:00]}  d6 {[%clk 0:02:54]} 8. Bd3 {[%clk 0:02:59]}  b6 {[%clk 0:02:54]} 9. Ne2 {[%clk 0:02:59]}  Nc6 {[%clk 0:02:53]} 10. O-O {[%clk 0:02:58]}  h6 {[%clk 0:02:50]} 11. Be3 {[%clk 0:02:56]}  e5 {[%clk 0:02:49]} 12. d5 {[%clk 0:02:55]}  Na5 {[%clk 0:02:48]} 13. Ng3 {[%clk 0:02:54]}  Ba6 {[%clk 0:02:46]} 14. Qe2 {[%clk 0:02:54]}  Bc8 {[%clk 0:02:32]} 15. Kh1 {[%clk 0:02:53]}  Bd7 {[%clk 0:02:30]} 16. h3 {[%clk 0:02:45]}  Rc8 {[%clk 0:02:26]} 17. f4 {[%clk 0:02:42]}  b5 {[%clk 0:02:01]} 18. cxb5 {[%clk 0:02:40]}  c4 {[%clk 0:01:59]} 19. Bc2 {[%clk 0:02:40]}  exf4 {[%clk 0:01:55]} 20. Rxf4 {[%clk 0:02:39]}  Re8 {[%clk 0:01:53]} 21. Raf1 {[%clk 0:02:37]}  Nb3 {[%clk 0:01:06]} 22. Rxf6 {[%clk 0:02:32]}  gxf6 {[%clk 0:01:04]} 23. Qh5 {[%clk 0:02:24]}  Re5 {[%clk 0:00:45]} 24. Qxh6 {[%clk 0:02:19]}  Qf8 {[%clk 0:00:43]} 25. Qh4 {[%clk 0:02:11]}  f5 {[%clk 0:00:32]} 26. Nh5 {[%clk 0:02:10]}  Qe7 {[%clk 0:00:14]} 27. Nf6+ {[%clk 0:02:09]}  Kg7 {[%clk 0:00:14]} 28. Qh6# {[%clk 0:02:08]} 1-0


[Site "https://www.chess.com"]

[Event "Titled Tuesday Blitz September 27 Early 2022"]
[White "Estrada Nieto, Julian"]
[Black "Thiel, Thomas"]
[WhiteFideId "5101018"]
[BlackFideId "4615964"]
[WhiteElo "2252"]
[BlackElo "2199"]
[Result "1-0"]
[Round "03"]
[TimeControl "180+1"]
[Date "2022.09.27"]
[WhiteClock "0:01:05"]
[BlackClock "0:01:52"]

1. e4 {[%clk 0:03:00]}  d5 {[%clk 0:02:59]} 2. exd5 {[%clk 0:02:57]}  Nf6 {[%clk 0:02:59]} 3. d4 {[%clk 0:02:52]}  Nxd5 {[%clk 0:02:57]} 4. Nf3 {[%clk 0:02:52]}  g6 {[%clk 0:02:57]} 5. Bc4 {[%clk 0:02:50]}  Bg7 {[%clk 0:02:56]} 6. O-O {[%clk 0:02:49]}  O-O {[%clk 0:02:56]} 7. h3 {[%clk 0:02:45]}  Nc6 {[%clk 0:02:55]} 8. c3 {[%clk 0:02:44]}  e5 {[%clk 0:02:55]} 9. dxe5 {[%clk 0:02:44]}  Nb6 {[%clk 0:02:54]} 10. Bb3 {[%clk 0:02:03]}  Qxd1 {[%clk 0:02:52]} 11. Rxd1 {[%clk 0:02:02]}  Nxe5 {[%clk 0:02:52]} 12. Nxe5 {[%clk 0:02:02]}  Bxe5 {[%clk 0:02:52]} 13. Bh6 {[%clk 0:02:01]}  Bg7 {[%clk 0:02:51]} 14. Bxg7 {[%clk 0:01:51]}  Kxg7 {[%clk 0:02:52]} 15. Nd2 {[%clk 0:01:51]}  c6 {[%clk 0:02:50]} 16. Ne4 {[%clk 0:01:48]}  Re8 {[%clk 0:02:38]} 17. Nd6 {[%clk 0:01:43]}  Re7 {[%clk 0:02:37]} 18. a4 {[%clk 0:01:37]}  a5 {[%clk 0:02:29]} 19. Rd2 {[%clk 0:01:23]}  Nd7 {[%clk 0:02:28]} 20. Rad1 {[%clk 0:01:17]}  Nc5 {[%clk 0:02:28]} 21. Bc2 {[%clk 0:01:17]}  b6 {[%clk 0:02:28]} 22. Nc4 {[%clk 0:01:11]}  Rb8 {[%clk 0:02:24]} 23. Rd8 {[%clk 0:01:11]}  Rd7 {[%clk 0:02:15]} 24. R1xd7 {[%clk 0:01:09]}  Nxd7 {[%clk 0:02:14]} 25. Nd6 {[%clk 0:01:06]}  Ba6 {[%clk 0:01:52]} 26. Rxd7 {[%clk 0:01:05]} 1-0


[Site "https://www.chess.com"]